fUSD/lending_fUSD_20251130
["ID","MTS","AMOUNT","RATE_DAILY","PERIOD"]
[395204023,1764541841510,-1511.26134501,0.00016621,2]
[395204025,1764541841519,-553.64373807,0.00016697,2]
[395204027,1764541841528,-151.0,0.00016697,2]
[395204029,1764541841537,-201.93286099,0.00016697,2]
[395204031,1764541841546,-151.0,0.00016697,2]
[395204033,1764541841555,-201.93286099,0.00016697,2]
[395204035,1764541841564,-3000.0,0.00016697,2]
[395204037,1764541841573,-642.94,0.00016697,2]
[395204039,1764541841583,-151.0,0.00016697,2]
[395204041,1764541841591,-151.0,0.00016713,2]
[395204043,1764541841600,-500.0,0.00016744,2]
[395204045,1764541841609,-461.0,0.00016744,2]
[395204047,1764541841618,-500.0,0.00016744,2]
[395204049,1764541841627,-2970.36,0.000168,2]
[395204051,1764541841636,-1100.0,0.000168,2]
[395204053,1764541841645,-600.0,0.00016829,2]
[395204055,1764541841653,-500.0,0.00016829,2]
[395204057,1764541841662,-3885.2537,0.0001683,2]
[395204059,1764541841672,-168.0,0.00016846,2]
[395204061,1764541841681,-200.0,0.00016863,2]
[395204063,1764541841690,-200.0,0.00016864,2]
[395204065,1764541841699,-200.0,0.00016864,2]
[395204067,1764541841708,-200.0,0.00016864,2]
[395204069,1764541841717,-200.0,0.00016864,2]
[395204071,1764541841727,-500.0,0.00016881,2]
[395204073,1764541841736,-150.0,0.00016881,2]
[395204075,1764541841745,-10083.32619742,0.000169,2]
[395204077,1764541841754,-7965.89385434,0.000169,2]
[395204079,1764541841763,-201.41866534,0.000169,2]
[395204082,1764541841771,-163.96536193,0.000169,2]
[395204084,1764541841781,-750.18742908,0.000169,2]
[395204086,1764541841790,-9765.0,0.000169,2]
[395204087,1764541841799,-168.0,0.00016912,2]
[395204090,1764541841808,-500.0,0.00016957,2]
[395204092,1764541841817,-500.0,0.00016957,2]
[395204093,1764541841827,-500.0,0.00016958,2]
[395204096,1764541841836,-523.46773215,0.00016958,2]
[395204098,1764541841845,-500.0,0.00016958,2]
[395204099,1764541841854,-460.75678549,0.00016958,2]
[395204101,1764541841863,-500.0,0.00016958,2]
[395204104,1764541841873,-500.0,0.00016958,2]
[395204106,1764541841883,-52625.0,0.00016959,2]
[395204108,1764541841892,-172.14260256,0.00016973,2]
[395204110,1764541841901,-174.27937181,0.00016973,2]
[395204112,1764541841911,-166.65415748,0.00016973,2]
[395204114,1764541841920,-500.0,0.00016973,2]
[395204116,1764541841929,-161.07388452,0.00016973,2]
[395204117,1764541841938,-500.0,0.00016973,2]
[395204120,1764541841947,-500.0,0.00016973,2]
[395204122,1764541841956,-500.0,0.00016973,2]
[395204124,1764541841965,-565.90233254,0.00016973,2]
[395204126,1764541841974,-500.0,0.00016973,2]
[395204127,1764541841983,-500.0,0.00016973,2]
[395204129,1764541841991,-500.0,0.00016973,2]
[395204132,1764541842001,-500.0,0.00016973,2]
[395204134,1764541842009,-157.2860755,0.00016973,2]
[395204135,1764541842019,-500.0,0.00016973,2]
[395204138,1764541842028,-501.42223441,0.00016973,2]
[395204139,1764541842037,-295.05852426,0.00016973,2]
[395204142,1764541842047,-500.0,0.00016973,2]
[395204144,1764541842056,-500.0,0.00016973,2]
[395204146,1764541842064,-514.18188343,0.00016973,2]
[395204148,1764541842075,-498.99397056,0.00016973,2]
[395204149,1764541842085,-500.0,0.00016973,2]
[395204151,1764541842095,-500.0,0.00016973,2]
[395204153,1764541842108,-500.0,0.00016973,2]
[395204154,1764541842117,-534.42146095,0.00016973,2]
[395204155,1764541842126,-168.14188112,0.00016973,2]
[395204156,1764541842135,-162.44041448,0.00016973,2]
[395204157,1764541842145,-500.0,0.00016973,2]
[395204158,1764541842154,-500.0,0.00016973,2]
[395204159,1764541842163,-164.85180001,0.00016973,2]
[395204160,1764541842172,-179.01901015,0.00016973,2]
[395204161,1764541842182,-500.0,0.00016973,2]
[395204162,1764541842191,-165.35460481,0.00016973,2]
[395204163,1764541842199,-501.18621372,0.00016973,2]
[395204164,1764541842208,-1006.55,0.00016973,2]
[395204165,1764541842217,-500.0,0.00016983,2]
[395204166,1764541842226,-500.0,0.00016989,2]
[395204169,1764541842235,-670.68075762,0.0001699,2]
[395204172,1764541842243,-670.68075762,0.0001699,2]
[395204175,1764541842252,-151.0,0.00016997,2]
[395204178,1764541842260,-319.34909176,0.00016998,2]
[395204181,1764541842269,-500.0,0.00016998,2]
[395204184,1764541842279,-511.88,0.00016998,2]
[395204187,1764541842288,-213.0,0.00016999,2]
[395204190,1764541842296,-500.0,0.00016999,2]
[395204193,1764541842305,-500.0,0.00016999,2]
[395204197,1764541842314,-500.0,0.00016999,2]
[395204199,1764541842323,-500.0,0.00016999,2]
[395204202,1764541842332,-500.0,0.00016999,2]
[395204203,1764541842341,-500.0,0.00016999,2]
[395204205,1764541842350,-500.0,0.00016999,2]
[395204207,1764541842359,-500.0,0.00016999,2]
[395204210,1764541842368,-500.0,0.00016999,2]
[395204211,1764541842377,-500.0,0.00016999,2]
[395204212,1764541842386,-511.1,0.00016999,2]
[395204213,1764541842396,-500.0,0.00016999,2]
[395204214,1764541842405,-500.0,0.00016999,2]
[395204216,1764541842414,-500.0,0.00016999,2]
[395204217,1764541842423,-500.0,0.00016999,2]
[395204218,1764541842432,-500.0,0.00016999,2]
[395204219,1764541842441,-500.0,0.00016999,2]
[395204220,1764541842451,-500.0,0.00016999,2]
[395204221,1764541842464,-500.0,0.00016999,2]
[395204222,1764541842473,-500.0,0.00016999,2]
[395204223,1764541842483,-532.59351283,0.00016999,2]
[395204225,1764541842492,-300.0,0.00016999,2]
[395204227,1764541842501,-1671386.63207514,0.00017,2]
[395204230,1764541842522,-2200.0,0.00017,2]
[395204233,1764541842533,-563.94852852,0.00017,2]
[395204244,1764541842628,-500.40107887,0.00016973,2]
[395204246,1764541842637,-955.43557267,0.00017,2]
[395204248,1764541842649,-13441.71464927,0.00017,2]
[395204250,1764541842660,-47794.29395456,0.00017,2]
[395204252,1764541842671,-1865.2,0.00017,2]
[395204255,1764541842691,-2745186.29973267,0.00017,2]
[395204257,1764541842702,-160.0,0.00017,2]
[395204259,1764541842711,-2000.0,0.00017,2]
[395204261,1764541842720,-2000.0,0.00017,2]
[395204263,1764541842730,-2000.0,0.00017,2]
[395204265,1764541842741,-2000.0,0.00017,2]
[395204267,1764541842750,-2000.0,0.00017,2]
[395204269,1764541842759,-2000.0,0.00017,2]
[395204271,1764541842768,-2000.0,0.00017,2]
[395204273,1764541842777,-2000.0,0.00017,2]
[395204275,1764541842787,-1425.646,0.00017,2]
[395204277,1764541842796,-1000.0,0.00017,2]
[395204279,1764541842805,-1000.0,0.00017,2]
[395204281,1764541842815,-1000.0,0.00017,2]
[395204283,1764541842824,-207.19002858,0.00017,2]
[395204285,1764541842834,-151.0,0.00017,2]
[395204287,1764541842843,-3124.2210619,0.00017,2]
[395204289,1764541842852,-376605.1345527,0.00017,2]
[395204291,1764541842862,-2000.0,0.00017,2]
[395204293,1764541842871,-200.0,0.00017,2]
[395204295,1764541842881,-1250.0,0.00017,2]
[395204297,1764541842891,-151.0,0.00017,2]
[395204299,1764541842901,-151.0,0.00017,2]
[395204301,1764541842910,-151.0,0.00017,2]
[395204303,1764541842919,-3549.580045,0.00017,2]
[395204305,1764541842928,-2000.0,0.00017,2]
[395204307,1764541842938,-13326.5468606,0.00017,2]
[395204308,1764541842947,-250.0,0.00017,2]
[395204309,1764541842957,-152.0,0.00017,2]
[395204310,1764541842966,-152.0,0.00017,2]
[395204311,1764541842975,-200.0,0.00017,2]
[395204312,1764541842984,-153.0,0.00017,2]
[395204313,1764541842994,-153.0,0.00017,2]
[395204314,1764541843003,-153.0,0.00017,2]
[395204315,1764541843012,-6177.3365997,0.00017,2]
[395204316,1764541843021,-5288.7579074,0.00017,2]
[395204317,1764541843030,-80181.0875075,0.00017,2]
[395204318,1764541843040,-74617.02504029,0.00017,2]
[395204319,1764541843049,-258175.51798673,0.00017,2]
[395204320,1764541843081,-2562.2917336,0.00017,2]
[395204321,1764541843092,-3164.0,0.00017,2]
[395204394,1764541846037,-500.0,0.00016438,2]
[395204395,1764541846047,-220.29999997,0.00016438,2]
[395204396,1764541846058,-279.70000003,0.00016438,2]
[395204397,1764541846068,-500.0,0.00016438,2]
[395204398,1764541846077,-558.7727102,0.00016438,2]
[395204399,1764541846087,-5431.52728206,0.00017,2]
[395204400,1764541846100,-533.13409746,0.00017,2]
[395204401,1764541846114,-1100.0,0.00017,2]
[395204402,1764541846125,-108154.8716081,0.00017,2]
[395204436,1764542834828,172.78,0.0001059,2]
[395204497,1764543032236,-1020.54048194,0.00013171,2]
[395204498,1764543032247,-922.13592424,0.00013171,2]
[395204499,1764543032258,-1347.38172906,0.00013171,2]
[395204500,1764543032270,-334.2368,0.00013171,2]
[395204501,1764543032281,-1006.68506476,0.00013171,2]
[395204502,1764543032290,-250.0,0.00013185,2]
[395204503,1764543032300,-910.36,0.00013198,2]
[395204504,1764543032309,-250.0,0.00013237,2]
[395204505,1764543032319,-1600.0,0.00013271,2]
[395204506,1764543032328,-197.82196213,0.00013272,2]
[395204507,1764543032337,-500.0,0.00013273,2]
[395204508,1764543032346,-1852.42,0.00013684,2]
[395204509,1764543032355,-1200.0,0.00013696,2]
[395204510,1764543032365,-300.0,0.00013696,2]
[395204511,1764543032374,-5161.9,0.00013697,2]
[395204512,1764543032384,-166.66,0.00013699,2]
[395204513,1764543032393,-166.66,0.00013836,2]
[395204514,1764543032402,-267.57197899,0.00013873,2]
[395204515,1764543032410,-3812.55,0.00013953,2]
[395204516,1764543032419,-3812.55,0.00013953,2]
[395204517,1764543032428,-1034.04,0.00013962,2]
[395204518,1764543032437,-500.0,0.00013962,2]
[395204519,1764543032447,-405.7439478,0.00013962,2]
[395204520,1764543032457,-500.0,0.00013962,2]
[395204521,1764543032466,-212.23837682,0.00013962,2]
[395204522,1764543032475,-424.34092304,0.00013962,2]
[395204523,1764543032484,-26153.51484674,0.00013963,2]
[395204524,1764543032851,-500.0,0.00013952,2]
[395204525,1764543032861,-500.0,0.00013952,2]
[395204526,1764543032870,-113841.42860545,0.00013963,2]
[395204527,1764543032880,-5023.60453309,0.00013963,2]
[395204528,1764543032891,-75717.59991847,0.00013963,2]
[395204529,1764543032904,-605.98677473,0.00013963,2]
[395204530,1764543037758,-176.63644013,0.00013952,2]
[395204531,1764543037770,-500.0,0.00013952,2]
[395204532,1764543037780,-500.0,0.00013952,2]
[395204533,1764543037793,-400.0,0.00013952,2]
[395204534,1764543037804,-500.0,0.00013952,2]
[395204535,1764543037815,-500.0,0.00013952,2]
[395204536,1764543037826,-500.0,0.00013952,2]
[395204537,1764543037837,-500.0,0.00013952,2]
[395204538,1764543037847,-500.0,0.00013952,2]
[395204539,1764543037858,-236.02922885,0.00013952,2]
[395204540,1764543037870,-263.97077115,0.00013952,2]
[395204541,1764543037880,-38.94127993,0.00013952,2]
[395204542,1764543037901,-451.14186505,0.00013952,2]
[395204543,1764543037927,-9.91685502,0.00013952,2]
[395204544,1764543037937,-500.0,0.00013952,2]
[395204545,1764543037946,-500.0,0.00013952,2]
[395204546,1764543037956,-500.0,0.00013952,2]
[395204547,1764543037967,-500.0,0.00013952,2]
[395204548,1764543037977,-500.0,0.00013952,2]
[395204549,1764543037988,-500.0,0.00013952,2]
[395204550,1764543037997,-2007.97646386,0.00013963,2]
[395204551,1764543038008,-1956.27416408,0.00013963,2]
[395204552,1764543038019,-733.75800295,0.00013963,2]
[395204553,1764543038041,-35954.58494366,0.00013963,2]
[395204554,1764543038063,-3531.99658436,0.00013963,2]
[395204555,1764543038094,-494473.27516261,0.00013963,2]
[395204556,1764543038105,-150.0,0.00013971,2]
[395204557,1764543038114,-166.66,0.00013973,2]
[395204558,1764543038123,-9999.99,0.00013973,2]
[395204560,1764543038133,-2942.24,0.00013973,2]
[395204562,1764543038142,-499.99,0.00013973,2]
[395204564,1764543038151,-150.99,0.00013973,2]
[395204566,1764543038161,-19492.25,0.00013973,2]
[395204568,1764543038170,-1430.03,0.00013973,2]
[395204570,1764543038179,-1675.22,0.00013973,2]
[395204572,1764543038188,-200.0,0.00014055,2]
[395204574,1764543038198,-200.0,0.00014055,2]
[395204576,1764543038207,-151.0,0.00014055,2]
[395204578,1764543038218,-151.0,0.00014055,2]
[395204580,1764543038228,-500.0,0.00014055,2]
[395204582,1764543038238,-151.0,0.00014055,2]
[395204585,1764543038247,-151.0,0.00014055,2]
[395204586,1764543038256,-151.0,0.00014055,2]
[395204589,1764543038266,-151.0,0.00014055,2]
[395204591,1764543038276,-151.0,0.00014055,2]
[395204593,1764543038285,-151.0,0.00014055,2]
[395204595,1764543038295,-151.0,0.00014055,2]
[395204597,1764543038304,-500.0,0.00014055,2]
[395204599,1764543038313,-151.0,0.00014055,2]
[395204601,1764543038323,-500.0,0.00014055,2]
[395204603,1764543038332,-151.0,0.00014055,2]
[395204604,1764543038342,-500.0,0.00014055,2]
[395204606,1764543038351,-151.0,0.00014055,2]
[395204609,1764543038360,-500.0,0.00014055,2]
[395204611,1764543038370,-151.0,0.00014055,2]
[395204613,1764543038380,-500.0,0.00014055,2]
[395204615,1764543038389,-500.0,0.00014055,2]
[395204617,1764543038399,-500.0,0.00014055,2]
[395204618,1764543038409,-500.0,0.00014055,2]
[395204620,1764543038419,-500.0,0.00014055,2]
[395204623,1764543038428,-500.0,0.00014055,2]
[395204625,1764543038438,-500.0,0.00014055,2]
[395204626,1764543038447,-500.0,0.00014055,2]
[395204628,1764543038457,-500.0,0.00014055,2]
[395204631,1764543038467,-200.0,0.00014055,2]
[395204633,1764543038476,-9999.99,0.0001406,2]
[395204634,1764543038486,-9999.99,0.0001406,2]
[395204637,1764543038495,-1819.11,0.0001406,2]
[395204639,1764543038505,-299.99,0.0001406,2]
[395204640,1764543038514,-3796.27,0.0001406,2]
[395204643,1764543038524,-884.551,0.00014062,2]
[395204645,1764543038533,-278.62301808,0.00014063,2]
[395204647,1764543038543,-1643.52,0.00014063,2]
[395204649,1764543038552,-800.2773,0.00014063,2]
[395204651,1764543038561,-2500.0,0.00014063,2]
[395204653,1764543038571,-166.68,0.00014095,2]
[395204655,1764543038581,-166.66,0.0001411,2]
[395204657,1764543038590,-384.83885913,0.00014134,2]
[395204659,1764543038600,-500.0,0.00014162,2]
[395204661,1764543038610,-500.18909078,0.00014162,2]
[395204663,1764543038619,-500.0,0.00014162,2]
[395204665,1764543038629,-500.0,0.00014162,2]
[395204667,1764543038638,-500.0,0.00014162,2]
[395204669,1764543038647,-500.0,0.00014162,2]
[395204671,1764543038656,-500.0,0.00014162,2]
[395204673,1764543038666,-500.0,0.00014162,2]
[395204675,1764543038675,-500.0,0.00014162,2]
[395204677,1764543038684,-500.0,0.00014162,2]
[395204679,1764543038693,-500.0,0.00014162,2]
[395204681,1764543038703,-500.0,0.00014162,2]
[395204683,1764543038713,-500.0,0.00014162,2]
[395204685,1764543038722,-500.0,0.00014162,2]
[395204687,1764543038731,-500.0,0.00014162,2]
[395204689,1764543038742,-500.0,0.00014162,2]
[395204690,1764543038751,-500.0,0.00014162,2]
[395204693,1764543038763,-1000.0,0.00014163,2]
[395204694,1764543038772,-9044.5805,0.00014163,2]
[395204696,1764543038782,-1034.04,0.00014236,2]
[395204698,1764543038791,-166.66,0.00014247,2]
[395204700,1764543038801,-301.34471525,0.00014362,2]
[395204702,1764543038810,-500.0,0.00014362,2]
[395204704,1764543038820,-500.0,0.00014362,2]
[395204706,1764543038829,-247.99517704,0.00014362,2]
[395204708,1764543038839,-500.0,0.00014362,2]
[395204710,1764543038849,-500.0,0.00014362,2]
[395204712,1764543038858,-500.0,0.00014362,2]
[395204714,1764543038868,-500.0,0.00014362,2]
[395204716,1764543038877,-500.0,0.00014362,2]
[395204718,1764543038887,-500.0,0.00014362,2]
[395204720,1764543038896,-500.0,0.00014362,2]
[395204723,1764543038906,-500.0,0.00014362,2]
[395204725,1764543038917,-500.0,0.00014362,2]
[395204727,1764543038927,-500.0,0.00014362,2]
[395204729,1764543038937,-500.0,0.00014362,2]
[395204731,1764543038946,-500.0,0.00014362,2]
[395204733,1764543038955,-500.0,0.00014362,2]
[395204734,1764543038964,-500.0,0.00014362,2]
[395204737,1764543038974,-500.0,0.00014362,2]
[395204739,1764543038984,-500.0,0.00014362,2]
[395204740,1764543038994,-323.68835638,0.00014362,2]
[395204743,1764543039003,-500.0,0.00014362,2]
[395204745,1764543039013,-500.0,0.00014362,2]
[395204747,1764543039023,-223.40328839,0.00014362,2]
[395204749,1764543039032,-166.66,0.00014384,2]
[395204751,1764543039042,-278.62301804,0.00014468,2]
[395204753,1764543039051,-250.0,0.00014488,2]
[395204755,1764543039060,-1034.04,0.0001451,2]
[395204756,1764543039070,-195.0,0.00014518,2]
[395204759,1764543039080,-195.0,0.00014518,2]
[395204761,1764543039090,-195.0,0.00014518,2]
[395204763,1764543039100,-151.0,0.00014521,2]
[395204765,1764543039109,-300.0,0.00014601,2]
[395204766,1764543039120,-300.0,0.00014601,2]
[395204768,1764543039129,-300.0,0.00014601,2]
[395204771,1764543039139,-300.0,0.00014601,2]
[395204773,1764543039149,-300.0,0.00014601,2]
[395204775,1764543039158,-300.0,0.00014601,2]
[395204777,1764543039168,-300.0,0.00014601,2]
[395204779,1764543039177,-182.19367473,0.00014601,2]
[395204781,1764543039187,-195.0,0.00014601,2]
[395204783,1764543039196,-200.0,0.00014603,2]
[395204785,1764543039206,-200.0,0.00014603,2]
[395204786,1764543039216,-1034.04,0.00014784,2]
[395204789,1764543039226,-278.62301804,0.00014874,2]
[395204791,1764543039235,-1600.0,0.0001493,2]
[395204793,1764543039244,-420.0,0.00015009,2]
[395204795,1764543039254,-3898.97,0.00015016,2]
[395204797,1764543039264,-1034.04,0.00015058,2]
[395204799,1764543039273,-1680.0,0.00015066,2]
[395204801,1764543039283,-322.33,0.00015068,2]
[395204803,1764543039292,-151.0,0.00015069,2]
[395204805,1764543039302,-250.0,0.00015083,2]
[395204807,1764543039311,-255.0,0.00015088,2]
[395204809,1764543039320,-235.07385118,0.0001515,2]
[395204811,1764543039330,-200.0,0.00015151,2]
[395204813,1764543039339,-200.0,0.00015151,2]
[395204815,1764543039349,-278.62301804,0.00015279,2]
[395204817,1764543039358,-150.0,0.00015288,2]
[395204819,1764543039367,-150.0,0.00015288,2]
[395204821,1764543039377,-150.0,0.00015288,2]
[395204823,1764543039386,-150.0,0.00015288,2]
[395204825,1764543039398,-150.0,0.00015288,2]
[395204827,1764543039408,-150.0,0.00015288,2]
[395204829,1764543039418,-150.0,0.00015288,2]
[395204831,1764543039427,-150.0,0.00015288,2]
[395204832,1764543039437,-150.0,0.00015288,2]
[395204835,1764543039446,-150.0,0.00015288,2]
[395204837,1764543039456,-150.0,0.00015288,2]
[395204839,1764543039465,-150.0,0.00015288,2]
[395204841,1764543039475,-150.0,0.00015288,2]
[395204842,1764543039484,-150.0,0.00015288,2]
[395204845,1764543039494,-267.57197897,0.00015303,2]
[395204847,1764543039503,-150.0,0.00015314,2]
[395204849,1764543039513,-1034.04,0.00015332,2]
[395204851,1764543039523,-150.0,0.00015334,2]
[395204852,1764543039532,-150.0,0.0001534,2]
[395204853,1764543039541,-150.0,0.00015346,2]
[395204854,1764543039552,-150.0,0.00015362,2]
[395204855,1764543039561,-150.0,0.00015365,2]
[395204856,1764543039570,-150.0,0.00015366,2]
[395204857,1764543039580,-150.0,0.00015377,2]
[395204858,1764543039589,-150.0,0.00015379,2]
[395204859,1764543039600,-150.0,0.00015392,2]
[395204860,1764543039610,-150.0,0.00015405,2]
[395204861,1764543039619,-150.0,0.00015418,2]
[395204862,1764543039630,-150.0,0.00015418,2]
[395204863,1764543039639,-150.0,0.00015425,2]
[395204864,1764543039648,-150.0,0.00015435,2]
[395204865,1764543039658,-150.0,0.00015442,2]
[395204866,1764543039667,-150.0,0.00015444,2]
[395204868,1764543039676,-150.0,0.00015458,2]
[395204869,1764543039686,-150.0,0.00015463,2]
[395204871,1764543039695,-150.0,0.00015466,2]
[395204873,1764543039705,-150.0,0.00015471,2]
[395204875,1764543039713,-150.0,0.00015471,2]
[395204877,1764543039722,-150.0,0.00015497,2]
[395204879,1764543039732,-150.0,0.00015509,2]
[395204881,1764543039741,-150.0,0.00015517,2]
[395204884,1764543039751,-150.0,0.00015519,2]
[395204886,1764543039765,-150.0,0.00015522,2]
[395204888,1764543039775,-150.0,0.00015523,2]
[395204890,1764543039783,-654.08786538,0.00015539,2]
[395204892,1764543039793,-150.0,0.00015549,2]
[395204893,1764543039802,-150.0,0.00015549,2]
[395204895,1764543039813,-150.0,0.00015556,2]
[395204898,1764543039823,-150.0,0.00015563,2]
[395204899,1764543039832,-150.0,0.00015571,2]
[395204901,1764543039843,-150.0,0.00015571,2]
[395204903,1764543039852,-150.0,0.00015575,2]
[395204905,1764543039861,-150.0,0.00015581,2]
[395204908,1764543039870,-150.0,0.00015583,2]
[395204909,1764543039879,-150.0,0.00015597,2]
[395204911,1764543039889,-150.0,0.00015601,2]
[395204914,1764543039898,-1034.04,0.00015606,2]
[395204915,1764543039907,-150.0,0.00015609,2]
[395204918,1764543039917,-151.0,0.00015617,2]
[395204920,1764543039928,-150.0,0.00015627,2]
[395204922,1764543039937,-150.0,0.00015627,2]
[395204923,1764543039947,-150.0,0.00015639,2]
[395204925,1764543039956,-150.0,0.00015645,2]
[395204928,1764543039965,-150.0,0.00015654,2]
[395204930,1764543039975,-150.0,0.00015655,2]
[395204931,1764543039984,-150.0,0.00015657,2]
[395204934,1764543039993,-150.0,0.00015674,2]
[395204935,1764543040002,-150.0,0.0001568,2]
[395204938,1764543040012,-150.0,0.0001568,2]
[395204939,1764543040022,-278.62301804,0.00015684,2]
[395204942,1764543040032,-150.0,0.00015698,2]
[395204944,1764543040043,-200.0,0.00015699,2]
[395204945,1764543040052,-200.0,0.00015699,2]
[395204948,1764543040061,-150.0,0.00015701,2]
[395204950,1764543040071,-150.0,0.00015706,2]
[395204951,1764543040080,-460.75678549,0.00015727,2]
[395204954,1764543040089,-500.0,0.00015727,2]
[395204956,1764543040098,-500.0,0.00015727,2]
[395204958,1764543040107,-500.0,0.00015727,2]
[395204959,1764543040116,-150.0,0.00015731,2]
[395204962,1764543040126,-150.0,0.00015732,2]
[395204964,1764543040136,-150.0,0.00015735,2]
[395204966,1764543040145,-150.0,0.00015747,2]
[395204968,1764543040155,-150.0,0.00015751,2]
[395204970,1764543040165,-150.0,0.00015756,2]
[395204972,1764543040173,-150.0,0.00015758,2]
[395204974,1764543040182,-654.08786533,0.00015766,2]
[395204975,1764543040191,-150.0,0.00015784,2]
[395204977,1764543040201,-150.0,0.00015793,2]
[395204980,1764543040210,-150.0,0.00015797,2]
[395204982,1764543040219,-150.0,0.00015805,2]
[395204984,1764543040228,-150.0,0.0001581,2]
[395204986,1764543040239,-150.0,0.0001581,2]
[395204988,1764543040248,-150.0,0.00015815,2]
[395204990,1764543040258,-150.0,0.00015824,2]
[395204992,1764543040267,-150.0,0.00015828,2]
[395204994,1764543040276,-150.0,0.00015836,2]
[395204996,1764543040288,-150.0,0.00015839,2]
[395204998,1764543040297,-150.0,0.00015854,2]
[395205000,1764543040306,-150.0,0.00015854,2]
[395205002,1764543040315,-150.0,0.00015863,2]
[395205004,1764543040324,-150.0,0.00015873,2]
[395205006,1764543040333,-150.0,0.00015878,2]
[395205008,1764543040342,-1034.09674724,0.0001588,2]
[395205010,1764543040352,-150.0,0.00015884,2]
[395205012,1764543040361,-150.0,0.00015889,2]
[395205014,1764543040370,-150.0,0.00015905,2]
[395205016,1764543040379,-150.0,0.00015913,2]
[395205018,1764543040388,-150.0,0.00015915,2]
[395205020,1764543040398,-150.0,0.0001593,2]
[395205022,1764543040406,-150.0,0.00015932,2]
[395205024,1764543040415,-150.0,0.00015941,2]
[395205026,1764543040425,-150.0,0.00015941,2]
[395205028,1764543040434,-150.0,0.00015952,2]
[395205030,1764543040443,-150.0,0.00015967,2]
[395205032,1764543040452,-150.0,0.00015967,2]
[395205034,1764543040461,-150.0,0.00015976,2]
[395205036,1764543040471,-150.0,0.00015983,2]
[395205038,1764543040480,-150.0,0.00015991,2]
[395205040,1764543040489,-654.08786533,0.00015993,2]
[395205042,1764543040498,-150.0,0.00015993,2]
[395205044,1764543040507,-532.59351283,0.00015999,2]
[395205046,1764543040517,-500.0,0.00015999,2]
[395205048,1764543040526,-65744.00109152,0.00016,2]
[395205050,1764543040535,-150.0,0.00016003,2]
[395205052,1764543040544,-186.8,0.00016013,2]
[395205054,1764543040553,-150.0,0.00016019,2]
[395205056,1764543040563,-150.0,0.00016022,2]
[395205058,1764543040573,-150.0,0.00016026,2]
[395205060,1764543040582,-150.0,0.00016046,2]
[395205062,1764543040592,-150.0,0.00016049,2]
[395205064,1764543040601,-153.48713579,0.00016059,2]
[395205066,1764543040610,-150.000001,0.00016059,2]
[395205068,1764543040619,-151.49686011,0.00016059,2]
[395205070,1764543040628,-150.0,0.00016059,2]
[395205072,1764543040637,-150.0,0.00016059,2]
[395205074,1764543040646,-150.0,0.00016059,2]
[395205076,1764543040654,-153.0061579,0.00016059,2]
[395205078,1764543040664,-151.73896267,0.00016059,2]
[395205080,1764543040673,-154.64526929,0.00016059,2]
[395205082,1764543040682,-151.5737728,0.00016059,2]
[395205084,1764543040691,-150.0,0.00016059,2]
[395205086,1764543040701,-150.0,0.00016059,2]